fUSD/lending_fUSD_20260627
["ID","MTS","AMOUNT","RATE_DAILY","PERIOD"]
[426527512,1782539439000,-500.0,0.00014798,2]
[426527509,1782539439000,-500.0,0.00014798,2]
[426527513,1782539439000,-500.0,0.00014798,2]
[426527511,1782539439000,-500.0,0.00014798,2]
[426527510,1782539439000,-500.0,0.00014798,2]
[426527523,1782539439000,-511.66,0.00014798,2]
[426527519,1782539439000,-584.26,0.00014798,2]
[426527524,1782539439000,-511.66,0.00014798,2]
[426527489,1782539439000,-500.0,0.00014798,2]
[426527518,1782539439000,-584.26,0.00014798,2]
[426527506,1782539439000,-500.0,0.00014798,2]
[426527494,1782539439000,-500.0,0.00014798,2]
[426527459,1782539439000,-500.0,0.00014798,2]
[426527477,1782539439000,-500.0,0.00014798,2]
[426527517,1782539439000,-584.26,0.00014798,2]
[426527431,1782539439000,-500.0,0.00014798,2]
[426527433,1782539439000,-500.0,0.00014798,2]
[426527437,1782539439000,-500.0,0.00014798,2]
[426527435,1782539439000,-500.0,0.00014798,2]
[426527441,1782539439000,-500.0,0.00014798,2]
[426527449,1782539439000,-500.0,0.00014798,2]
[426527447,1782539439000,-500.0,0.00014798,2]
[426527439,1782539439000,-231.84853459,0.00014798,2]
[426527443,1782539439000,-500.0,0.00014798,2]
[426527445,1782539439000,-500.0,0.00014798,2]
[426527487,1782539439000,-500.0,0.00014798,2]
[426527451,1782539439000,-500.0,0.00014798,2]
[426527461,1782539439000,-500.0,0.00014798,2]
[426527465,1782539439000,-500.0,0.00014798,2]
[426527473,1782539439000,-500.0,0.00014798,2]
[426527463,1782539439000,-500.0,0.00014798,2]
[426527471,1782539439000,-500.0,0.00014798,2]
[426527467,1782539439000,-500.0,0.00014798,2]
[426527469,1782539439000,-500.0,0.00014798,2]
[426527484,1782539439000,-526.06294901,0.00014798,2]
[426527481,1782539439000,-500.0,0.00014798,2]
[426527475,1782539439000,-500.0,0.00014798,2]
[426527479,1782539439000,-500.0,0.00014798,2]
[426527457,1782539439000,-500.0,0.00014798,2]
[426527520,1782539439000,-584.26,0.00014798,2]
[426527505,1782539439000,-500.0,0.00014798,2]
[426527526,1782539439000,-511.66,0.00014798,2]
[426527550,1782539439000,-500.0,0.00014798,2]
[426527564,1782539439000,-420.24723314,0.00015,2]
[426527553,1782539439000,-516.08,0.000148,2]
[426527554,1782539439000,-5200.0,0.000148,5]
[426527557,1782539439000,-500.0,0.00014872,2]
[426527556,1782539439000,-533.62668365,0.00014853,2]
[426527555,1782539439000,-200.0,0.00014846,2]
[426527558,1782539439000,-320.73,0.00014883,2]
[426527562,1782539439000,-200.0,0.00014994,2]
[426527560,1782539439000,-448.69,0.00014902,2]
[426527561,1782539439000,-239.6,0.00014985,2]
[426527559,1782539439000,-7800.0,0.000149,5]
[426527565,1782539439000,-280.16482209,0.00015,2]
[426527566,1782539439000,-300.0,0.00015,2]
[426527576,1782539439000,-5631.31631505,0.00015022,2]
[426527567,1782539439000,-200.0,0.00015,2]
[426527570,1782539439000,-300.0,0.00015,2]
[426527569,1782539439000,-200.0,0.00015,2]
[426527573,1782539439000,-240.65928838,0.00015,2]
[426527572,1782539439000,-360.98893256,0.00015,2]
[426527571,1782539439000,-200.0,0.00015,2]
[426527575,1782539439000,-66876.83682732,0.00015022,2]
[426527568,1782539439000,-300.0,0.00015,2]
[426527574,1782539439000,-300.0,0.00015021,2]
[426527515,1782539439000,-500.0,0.00014798,2]
[426527549,1782539439000,-500.0,0.00014798,2]
[426527548,1782539439000,-500.0,0.00014798,2]
[426527563,1782539439000,-200.0,0.00015,2]
[426527551,1782539439000,-500.0,0.00014798,2]
[426527527,1782539439000,-511.66,0.00014798,2]
[426527547,1782539439000,-500.0,0.00014798,2]
[426527521,1782539439000,-584.26,0.00014798,2]
[426527525,1782539439000,-511.66,0.00014798,2]
[426527529,1782539439000,-500.0,0.00014798,2]
[426527539,1782539439000,-500.0,0.00014798,2]
[426527577,1782539439000,-568.13833919,0.00015022,2]
[426527540,1782539439000,-500.0,0.00014798,2]
[426527528,1782539439000,-511.66,0.00014798,2]
[426527534,1782539439000,-500.0,0.00014798,2]
[426527532,1782539439000,-500.0,0.00014798,2]
[426527530,1782539439000,-500.0,0.00014798,2]
[426527531,1782539439000,-500.0,0.00014798,2]
[426527522,1782539439000,-584.26,0.00014798,2]
[426527538,1782539439000,-500.0,0.00014798,2]
[426527536,1782539439000,-500.0,0.00014798,2]
[426527545,1782539439000,-500.0,0.00014798,2]
[426527552,1782539439000,-248.16631107,0.00014798,2]
[426527546,1782539439000,-500.0,0.00014798,2]
[426527543,1782539439000,-500.0,0.00014798,2]
[426527542,1782539439000,-500.0,0.00014798,2]
[426527533,1782539439000,-500.0,0.00014798,2]
[426527537,1782539439000,-500.0,0.00014798,2]
[426527535,1782539439000,-500.0,0.00014798,2]
[426527541,1782539439000,-500.0,0.00014798,2]
[426527544,1782539439000,-500.0,0.00014798,2]
[426527598,1782539440000,-182.2,0.00016789,2]
[426527586,1782539440000,-302.62956109,0.00015322,2]
[426527599,1782539440000,-345.0,0.00016847,2]
[426527597,1782539440000,-173.39,0.00016789,2]
[426527593,1782539440000,-338.63341566,0.00015694,2]
[426527596,1782539440000,-448.69,0.00016558,2]
[426527595,1782539440000,-200.0,0.00016518,2]
[426527592,1782539440000,-255.0,0.00015629,2]
[426527594,1782539440000,-168.85,0.00016426,2]
[426527591,1782539440000,-500.0,0.0001542,2]
[426527584,1782539440000,-216.51184279,0.00015278,2]
[426527585,1782539440000,-200.0,0.00015296,2]
[426527588,1782539440000,-250.0,0.00015322,2]
[426527590,1782539440000,-228.53,0.00015399,2]
[426527587,1782539440000,-200.44764682,0.00015322,2]
[426527579,1782539440000,-300.0,0.00015022,2]
[426527581,1782539440000,-200.0,0.00015144,2]
[426527582,1782539440000,-500.0,0.00015146,2]
[426527583,1782539440000,-168.85,0.00015262,2]
[426527580,1782539440000,-200.0,0.00015022,2]
[426527578,1782539440000,-27005.44637384,0.00015022,2]
[426527604,1782539440000,-626.15,0.00017011,2]
[426527589,1782539440000,-500.0,0.00015322,2]
[426527606,1782539440000,-228.53,0.0001711,2]
[426527619,1782539440000,-516.08,0.000196,2]
[426527600,1782539440000,-516.08,0.000169,2]
[426527605,1782539440000,-8945.95349619,0.00017012,2]
[426527625,1782539440000,-200.47,0.00021273,2]
[426527627,1782539440000,-4176.7063136,0.00021918,2]
[426527626,1782539440000,-1009.99,0.00021273,2]
[426527620,1782539440000,-448.69,0.00019869,2]
[426527621,1782539440000,-165.9212232,0.00020155,2]
[426527614,1782539440000,-228.53,0.00018821,2]
[426527624,1782539440000,-648.55571441,0.00021134,2]
[426527615,1782539440000,-2259.78,0.00019181,2]
[426527611,1782539440000,-448.69,0.00018213,2]
[426527618,1782539440000,-168.78,0.00019572,2]
[426527623,1782539440000,-228.53,0.00020532,2]
[426527617,1782539440000,-8945.95349619,0.00019525,2]
[426527601,1782539440000,-8948.19791976,0.00016922,2]
[426527610,1782539440000,-249.54,0.0001793,2]
[426527602,1782539440000,-500.0,0.00017011,2]
[426527608,1782539440000,-150.0,0.00017706,2]
[426527607,1782539440000,-1879.78286024,0.00017504,2]
[426527609,1782539440000,-168.78,0.00017792,2]
[426527603,1782539440000,-816.49,0.00017011,2]
[426527612,1782539440000,-253.15987986,0.00018629,2]
[426527616,1782539440000,-8948.19791976,0.00019446,2]
[426527613,1782539440000,-168.78,0.00018682,2]
[426527646,1782539441000,-162.45,0.00024658,2]
[426527657,1782539441000,-999.99,0.00026591,2]
[426527648,1782539441000,-156.31,0.00024658,2]
[426527650,1782539441000,-1128.0,0.00024783,2]
[426527644,1782539441000,-8948.19791976,0.00024494,2]
[426527647,1782539441000,-1000.0,0.00024658,2]
[426527653,1782539441000,-302.04,0.00025812,7]
[426527645,1782539441000,-8945.95349619,0.00024551,2]
[426527655,1782539441000,-4266.86,0.00026591,2]
[426527652,1782539441000,-165.9212232,0.00025811,2]
[426527654,1782539441000,-173.0,0.00026117,5]
[426527656,1782539441000,-9999.99,0.00026591,2]
[426527649,1782539441000,-167.98,0.00024658,2]
[426527642,1782539441000,-180.793004,0.00024208,2]
[426527630,1782539441000,-8948.19791976,0.0002197,2]
[426527636,1782539441000,-216.50370993,0.00023457,2]
[426527639,1782539441000,-516.08,0.000238,7]
[426527641,1782539441000,-650.55,0.00024174,2]
[426527638,1782539441000,-1480.22045047,0.000238,2]
[426527643,1782539441000,-151.95595905,0.00024208,2]
[426527640,1782539441000,-1480.22045047,0.000241,2]
[426527632,1782539441000,-262.39999999,0.000231,2]
[426527634,1782539441000,-1480.22045047,0.000231,2]
[426527635,1782539441000,-1480.22045047,0.000234,2]
[426527637,1782539441000,-1480.22045047,0.000236,2]
[426527631,1782539441000,-8945.95349619,0.00022038,2]
[426527633,1782539441000,-227.77390215,0.000231,2]
[426527629,1782539441000,-821.78999113,0.00021918,2]
[426527628,1782539441000,-1.50369527,0.00021918,2]
[426527651,1782539441000,-1106.12599378,0.00025807,2]
[426527659,1782539441000,-500.0,0.00026606,2]
[426527686,1782539441000,-4999.99,0.00027397,2]
[426527658,1782539441000,-500.0,0.00026606,2]
[426527660,1782539441000,-500.0,0.00026606,2]
[426527690,1782539441000,-174.63629856,0.00027397,2]
[426527687,1782539441000,-9999.99,0.00027397,2]
[426527689,1782539441000,-299.99,0.00027397,12]
[426527688,1782539441000,-150.99,0.00027397,2]
[426527682,1782539441000,-8945.95349619,0.00027063,2]
[426527681,1782539441000,-656.57,0.00027063,2]
[426527680,1782539441000,-8948.19791976,0.00027019,2]
[426527685,1782539441000,-9999.99,0.00027397,2]
[426527683,1782539441000,-1500.0,0.00027397,2]
[426527674,1782539441000,-500.0,0.00026606,2]
[426527676,1782539441000,-500.0,0.00026606,2]
[426527678,1782539441000,-500.0,0.00026606,2]
[426527679,1782539441000,-500.0,0.00026606,2]
[426527684,1782539441000,-12776.68,0.00027397,10]
[426527691,1782539441000,-160.0,0.000274,10]
[426527675,1782539441000,-500.0,0.00026606,2]
[426527677,1782539441000,-500.0,0.00026606,2]
[426527667,1782539441000,-500.0,0.00026606,2]
[426527668,1782539441000,-500.0,0.00026606,2]
[426527672,1782539441000,-511.66,0.00026606,2]
[426527664,1782539441000,-500.0,0.00026606,2]
[426527670,1782539441000,-584.26,0.00026606,2]
[426527669,1782539441000,-500.0,0.00026606,2]
[426527662,1782539441000,-500.0,0.00026606,2]
[426527663,1782539441000,-500.0,0.00026606,2]
[426527666,1782539441000,-500.0,0.00026606,2]
[426527665,1782539441000,-500.0,0.00026606,2]
[426527661,1782539441000,-500.0,0.00026606,2]
[426527673,1782539441000,-511.66,0.00026606,2]
[426527671,1782539441000,-584.26,0.00026606,2]
[426527737,1782539442000,-500.0,0.00030136,2]
[426527729,1782539442000,-151.0,0.0003,7]
[426527732,1782539442000,-668.09292832,0.00030129,28]
[426527723,1782539442000,-12499.98,0.0003,2]
[426527726,1782539442000,-12500.0,0.0003,2]
[426527730,1782539442000,-288.72,0.00030039,2]
[426527728,1782539442000,-152.152611,0.0003,7]
[426527727,1782539442000,-22500.0,0.0003,2]
[426527731,1782539442000,-446.60403606,0.00030129,28]
[426527733,1782539442000,-903.9492,0.00030129,28]
[426527739,1782539442000,-500.0,0.00030136,2]
[426527736,1782539442000,-500.0,0.00030136,2]
[426527725,1782539442000,-7054.43,0.0003,2]
[426527735,1782539442000,-500.0,0.00030136,2]
[426527738,1782539442000,-500.0,0.00030136,2]
[426527743,1782539442000,-22331.2541956,0.00030193,2]
[426527746,1782539442000,-163.0,0.00030654,30]
[426527742,1782539442000,-200.57044647,0.00030137,2]
[426527740,1782539442000,-500.0,0.00030136,2]
[426527745,1782539442000,-169.0,0.00030654,30]
[426527741,1782539442000,-305.86724768,0.00030136,2]
[426527749,1782539442000,-24769.23372481,0.000307,8]
[426527747,1782539442000,-156.0,0.00030654,30]
[426527753,1782539442000,-500.0,0.00031437,2]
[426527757,1782539442000,-151.0,0.00031507,7]
[426527765,1782539442000,-160.9239373,0.00031538,2]
[426527764,1782539442000,-626.15,0.00031536,7]
[426527734,1782539442000,-218.64851979,0.00030136,7]
[426527751,1782539442000,-1000.0,0.00031,7]
[426527724,1782539442000,-14598.11,0.0003,2]
[426527706,1782539442000,-500.0,0.00029,7]
[426527711,1782539442000,-500.0,0.00029,7]
[426527696,1782539442000,-302.04,0.00027728,7]
[426527694,1782539442000,-637.38,0.000276,14]
[426527692,1782539442000,-216.51184279,0.000274,10]
[426527693,1782539442000,-500.0,0.000275,7]
[426527695,1782539442000,-499.25980348,0.00027621,14]
[426527698,1782539442000,-162.45,0.0002831,2]
[426527709,1782539442000,-500.0,0.00029,7]
[426527708,1782539442000,-513.72,0.00029,7]
[426527697,1782539442000,-162.703798,0.000279,2]
[426527699,1782539442000,-161.0,0.00028654,30]
[426527700,1782539442000,-166.0,0.00028654,30]
[426527702,1782539442000,-161.78085818,0.00028654,30]
[426527705,1782539442000,-500.0,0.00029,7]
[426527703,1782539442000,-153.0,0.00028654,30]
[426527701,1782539442000,-163.0,0.00028654,30]
[426527704,1782539442000,-500.0,0.00029,7]
[426527755,1782539442000,-228.727206,0.00031507,7]
[426527707,1782539442000,-500.0,0.00029,7]
[426527710,1782539442000,-500.0,0.00029,7]
[426527714,1782539442000,-720.9692504,0.00029343,2]
[426527715,1782539442000,-8948.19791976,0.00029543,2]
[426527712,1782539442000,-179.07,0.00029,7]
[426527718,1782539442000,-161.0,0.00029654,30]
[426527717,1782539442000,-302.04,0.00029644,7]
[426527713,1782539442000,-5698.9266513,0.00029343,2]
[426527716,1782539442000,-8945.95349619,0.00029576,2]
[426527721,1782539442000,-300.0,0.00029999,10]
[426527719,1782539442000,-163.0,0.00029654,30]
[426527722,1782539442000,-2499.98,0.0003,2]
[426527720,1782539442000,-153.0,0.00029654,30]
[426527756,1782539442000,-151.0,0.00031507,7]
[426527744,1782539442000,-152.0,0.00030541,3]
[426527752,1782539442000,-2000.0,0.00031,2]
[426527804,1782539442000,-4982.7763249,0.00033578,2]
[426527797,1782539442000,-500.0,0.00033568,120]
[426527795,1782539442000,-500.0,0.00033568,120]
[426527793,1782539442000,-500.0,0.00033568,120]
[426527801,1782539442000,-151.0,0.00033568,7]
[426527796,1782539442000,-500.0,0.00033568,2]
[426527802,1782539442000,-500.0,0.00033568,120]
[426527800,1782539442000,-509.37574809,0.00033568,120]
[426527798,1782539442000,-584.26,0.00033568,120]
[426527792,1782539442000,-500.0,0.00033568,2]
[426527803,1782539442000,-500.0,0.00033568,120]
[426527799,1782539442000,-511.66,0.00033568,14]
[426527806,1782539442000,-388.98550907,0.00033585,2]
[426527805,1782539442000,-4698.0,0.00033579,10]
[426527817,1782539442000,-8948.19791976,0.00034591,2]
[426527807,1782539442000,-157.47,0.000339,30]
[426527809,1782539442000,-644.53,0.00034,2]
[426527808,1782539442000,-482.58,0.00033998,2]
[426527813,1782539442000,-182.188738,0.00034302,7]
[426527811,1782539442000,-200.0,0.00034078,10]
[426527812,1782539442000,-520.0,0.00034099,5]
[426527810,1782539442000,-2030.0,0.00034019,20]
[426527815,1782539442000,-1500.0,0.000344,7]
[426527814,1782539442000,-507.0,0.00034308,2]
[426527819,1782539442000,-4057.10182715,0.00034609,2]
[426527818,1782539442000,-8945.95349619,0.00034602,2]
[426527821,1782539442000,-500.0,0.00034879,120]
[426527820,1782539442000,-500.0,0.00034879,2]
[426527763,1782539442000,-816.49,0.00031536,7]
[426527794,1782539442000,-500.0,0.00033568,120]
[426527791,1782539442000,-302.04,0.00033476,14]
[426527816,1782539442000,-516.08,0.000344,7]
[426527784,1782539442000,-1271.6024163,0.00032633,2]
[426527786,1782539442000,-2030.0,0.00032967,20]
[426527761,1782539442000,-200.59593501,0.00031507,7]
[426527754,1782539442000,-165.9212232,0.00031466,2]
[426527758,1782539442000,-151.0,0.00031507,7]
[426527760,1782539442000,-200.59593501,0.00031507,7]
[426527762,1782539442000,-500.0,0.00031536,120]
[426527773,1782539442000,-216.51184279,0.00032,7]
[426527768,1782539442000,-656.57,0.00031913,7]
[426527766,1782539442000,-302.04,0.0003156,14]
[426527770,1782539442000,-162.45,0.00031963,2]
[426527772,1782539442000,-3000.0,0.00032,2]
[426527775,1782539442000,-151.0,0.00032089,7]
[426527767,1782539442000,-165.0,0.00031654,30]
[426527774,1782539442000,-8948.19791976,0.00032067,2]
[426527776,1782539442000,-151.0,0.00032089,7]
[426527759,1782539442000,-197.830008,0.00031507,7]
[426527781,1782539442000,-5496.0,0.000323,3]
[426527769,1782539442000,-2030.0,0.00031914,20]
[426527789,1782539442000,-152.0,0.00033138,4]
[426527778,1782539442000,-200.47,0.00032232,7]
[426527788,1782539442000,-5554.43514228,0.0003303,2]
[426527790,1782539442000,-5527.0,0.000332,5]
[426527780,1782539442000,-650.55,0.00032232,7]
[426527777,1782539442000,-8945.95349619,0.00032089,2]
[426527779,1782539442000,-1009.99,0.00032232,7]
[426527771,1782539442000,-2000.0,0.00032,2]
[426527783,1782539442000,-166.2659981,0.00032367,2]
[426527782,1782539442000,-516.08,0.000323,7]
[426527785,1782539442000,-160.8699843,0.00032633,2]
[426527787,1782539442000,-88312.57067833,0.00033,2]
[426527867,1782539443000,-500.0,0.00035454,120]
[426527863,1782539443000,-500.0,0.00035454,120]
[426527857,1782539443000,-173.0,0.00035437,7]
[426527869,1782539443000,-511.66,0.00035454,14]
[426527866,1782539443000,-500.0,0.00035454,120]
[426527860,1782539443000,-170.0,0.00035444,7]
[426527855,1782539443000,-223.97,0.0003543,2]
[426527870,1782539443000,-500.0,0.00035454,120]
[426527859,1782539443000,-150.06702708,0.00035442,2]
[426527858,1782539443000,-189.37,0.00035442,2]
[426527854,1782539443000,-208.41,0.0003543,2]
[426527851,1782539443000,-160.08,0.00035427,30]
[426527864,1782539443000,-535.7374899,0.00035454,120]
[426527871,1782539443000,-500.0,0.00035454,120]
[426527861,1782539443000,-300.0,0.00035454,10]
[426527883,1782539443000,-507.27036575,0.00035571,60]
[426527865,1782539443000,-500.0,0.00035454,2]
[426527868,1782539443000,-584.26,0.00035454,120]
[426527877,1782539443000,-151.0,0.00035455,7]
[426527875,1782539443000,-100000.0,0.00035455,60]
[426527872,1782539443000,-656.57,0.00035454,7]
[426527882,1782539443000,-166.47,0.0003557,80]
[426527873,1782539443000,-816.49,0.00035454,7]
[426527880,1782539443000,-500.0,0.00035499,2]
[426527874,1782539443000,-626.15,0.00035454,7]
[426527876,1782539443000,-100000.0,0.00035455,90]
[426527879,1782539443000,-151.0,0.00035455,7]
[426527884,1782539443000,-2000.0,0.000356,120]
[426527881,1782539443000,-150.0,0.0003555,7]
[426527862,1782539443000,-500.0,0.00035454,2]
[426527856,1782539443000,-175.62,0.0003543,30]
[426527878,1782539443000,-151.0,0.00035455,7]
[426527853,1782539443000,-175.63,0.00035429,30]
[426527830,1782539443000,-207.4079168,0.000349,120]
[426527831,1782539443000,-167.00110126,0.000349,120]
[426527828,1782539443000,-500.0,0.00034879,120]
[426527824,1782539443000,-500.0,0.00034879,120]
[426527823,1782539443000,-500.0,0.00034879,2]
[426527822,1782539443000,-500.0,0.00034879,120]
[426527826,1782539443000,-511.66,0.00034879,14]
[426527829,1782539443000,-174.75054074,0.000349,120]
[426527827,1782539443000,-500.0,0.00034879,120]
[426527825,1782539443000,-584.26,0.00034879,120]
[426527833,1782539443000,-7048.0,0.00034922,10]
[426527843,1782539443000,-166.47,0.0003508,30]
[426527844,1782539443000,-182.02703039,0.000353,30]
[426527845,1782539443000,-182.02703037,0.000353,30]
[426527839,1782539443000,-1500.0,0.00035,2]
[426527834,1782539443000,-507.0,0.00034971,2]
[426527835,1782539443000,-500.0,0.00034999,2]
[426527840,1782539443000,-1500.0,0.00035,2]
[426527836,1782539443000,-500.0,0.00035,120]
[426527837,1782539443000,-200.59593501,0.00035,7]
[426527841,1782539443000,-1512.1982,0.00035,2]
[426527832,1782539443000,-10400.0,0.000349,12]
[426527842,1782539443000,-2030.0,0.00035071,20]
[426527838,1782539443000,-200.59593501,0.00035,7]
[426527846,1782539443000,-185.94719772,0.000353,30]
[426527847,1782539443000,-185.9471977,0.000353,30]
[426527848,1782539443000,-185.9471977,0.000353,30]
[426527852,1782539443000,-160.69,0.00035427,30]
[426527849,1782539443000,-302.04,0.00035392,30]
[426527850,1782539443000,-154.86,0.00035427,30]
[426527901,1782539443000,-656.57,0.00035615,7]
[426527914,1782539443000,-3000.0,0.00035616,2]
[426527909,1782539443000,-151.0,0.00035616,7]
[426527933,1782539443000,-3000.0,0.00035616,2]
[426527937,1782539443000,-3000.0,0.00035616,2]
[426527940,1782539443000,-3000.0,0.00035616,2]
[426527950,1782539443000,-500.0,0.00035616,7]
[426527943,1782539443000,-3000.0,0.00035616,2]
[426527938,1782539443000,-3000.0,0.00035616,2]
[426527941,1782539443000,-3000.0,0.00035616,2]
[426527949,1782539443000,-162.45,0.00035616,2]
[426527942,1782539443000,-3000.0,0.00035616,2]
[426527948,1782539443000,-3000.0,0.00035616,2]
[426527947,1782539443000,-3000.0,0.00035616,2]
[426527944,1782539443000,-3000.0,0.00035616,2]
[426527945,1782539443000,-3000.0,0.00035616,2]
[426527946,1782539443000,-3000.0,0.00035616,2]
[426527962,1782539443000,-816.49,0.00035899,7]
[426527964,1782539443000,-516.08,0.000359,7]
[426527952,1782539443000,-380.79818981,0.00035616,7]
[426527963,1782539443000,-626.15,0.00035899,7]
[426527957,1782539443000,-152.0,0.00035735,5]
[426527961,1782539443000,-1656.75860448,0.00035761,2]
[426527951,1782539443000,-500.0,0.00035616,7]
[426527955,1782539443000,-521.09853153,0.00035677,120]
[426527954,1782539443000,-185.23,0.00035658,2]
[426527953,1782539443000,-507.0,0.00035633,3]
[426527959,1782539443000,-160.08,0.0003574,7]
[426527958,1782539443000,-151.0,0.00035739,30]
[426527960,1782539443000,-160.69,0.0003574,7]
[426527956,1782539443000,-154.86,0.00035695,7]
[426527911,1782539443000,-3000.0,0.00035616,2]
[426527931,1782539443000,-3000.0,0.00035616,2]
[426527935,1782539443000,-3000.0,0.00035616,2]
[426527965,1782539443000,-500.0,0.00035928,2]
[426527932,1782539443000,-3000.0,0.00035616,2]
[426527895,1782539443000,-511.66,0.00035615,14]
[426527903,1782539443000,-150.0,0.00035616,60]
[426527905,1782539443000,-151.0,0.00035616,7]
[426527885,1782539443000,-649.0,0.00035614,5]
[426527887,1782539443000,-300.0,0.00035615,10]
[426527891,1782539443000,-500.0,0.00035615,120]
[426527897,1782539443000,-500.0,0.00035615,120]
[426527893,1782539443000,-584.26,0.00035615,120]
[426527936,1782539443000,-3000.0,0.00035616,2]
[426527907,1782539443000,-182.407744,0.00035616,7]
[426527889,1782539443000,-500.0,0.00035615,2]
[426527916,1782539443000,-3000.0,0.00035616,2]
[426527924,1782539443000,-3000.0,0.00035616,2]
[426527917,1782539443000,-3000.0,0.00035616,2]
[426527915,1782539443000,-3000.0,0.00035616,2]
[426527899,1782539443000,-500.0,0.00035615,120]
[426527921,1782539443000,-3000.0,0.00035616,2]
[426527930,1782539443000,-3000.0,0.00035616,2]
[426527919,1782539443000,-3000.0,0.00035616,2]
[426527934,1782539443000,-3000.0,0.00035616,2]
[426527928,1782539443000,-3000.0,0.00035616,2]
[426527927,1782539443000,-3000.0,0.00035616,2]
[426527929,1782539443000,-3000.0,0.00035616,2]
[426527926,1782539443000,-3000.0,0.00035616,2]
[426527923,1782539443000,-3000.0,0.00035616,2]
[426527920,1782539443000,-3000.0,0.00035616,2]
[426527925,1782539443000,-3000.0,0.00035616,2]
[426527913,1782539443000,-3000.0,0.00035616,2]
[426527918,1782539443000,-3000.0,0.00035616,2]
[426527966,1782539443000,-154.86,0.00035964,2]
[426527922,1782539443000,-3000.0,0.00035616,2]
[426528008,1782539444000,-2600.0,0.000365,13]
[426528014,1782539444000,-524.07,0.00036625,120]
[426528011,1782539444000,-150.0,0.00036562,2]
[426528007,1782539444000,-516.08,0.000365,7]
[426528009,1782539444000,-154.86,0.00036502,7]
[426528002,1782539444000,-2610.55672894,0.00036424,10]
[426528016,1782539444000,-154.86,0.00036681,7]
[426528005,1782539444000,-327.0,0.00036465,2]
[426528000,1782539444000,-25000.0,0.00036407,10]
[426527999,1782539444000,-2600.0,0.000364,13]
[426527998,1782539444000,-516.08,0.000364,7]
[426528015,1782539444000,-1656.75860448,0.00036666,2]
[426528004,1782539444000,-4608.55207839,0.00036426,10]
[426528027,1782539444000,-500.0,0.00036712,30]
[426528006,1782539444000,-396.32,0.0003648,2]
[426528010,1782539444000,-166.47,0.0003654,120]
[426528017,1782539444000,-364.97608837,0.000367,9]
[426528013,1782539444000,-9397.0,0.00036601,10]
[426528019,1782539444000,-500.0,0.00036712,2]
[426528028,1782539444000,-500.0,0.00036712,30]
[426528030,1782539444000,-560.35118456,0.00036712,30]
[426528024,1782539444000,-500.0,0.00036712,30]
[426528026,1782539444000,-500.0,0.00036712,30]
[426528029,1782539444000,-500.0,0.00036712,30]
[426528022,1782539444000,-464.80793422,0.00036712,2]
[426528021,1782539444000,-500.0,0.00036712,2]
[426528025,1782539444000,-500.0,0.00036712,30]
[426527994,1782539444000,-159.74,0.00036367,30]
[426528012,1782539444000,-2600.0,0.000366,13]
[426527997,1782539444000,-25000.0,0.00036399,10]
[426527992,1782539444000,-364.97608837,0.00036308,8]
[426527996,1782539444000,-160.69,0.00036367,30]